lending/lending_fUSD_20250303
["ID","MTS","AMOUNT","RATE_DAILY","PERIOD"]
[355202791,1741005335462,-500.81130015,0.00014886,2]
[355202792,1741005335485,-506.92105769,0.00014886,2]
[355202793,1741005335507,-501.1861652,0.00014886,2]
[355202794,1741005335534,-504.71462944,0.00014886,2]
[355202795,1741005335557,-500.0,0.00014886,2]
[355202796,1741005335580,-588.25,0.00014886,2]
[355202797,1741005335604,-514.67540868,0.00014886,2]
[355202798,1741005335627,-500.0,0.00014886,2]
[355202799,1741005335648,-503.66548429,0.00014886,2]
[355202800,1741005335671,-507.85027585,0.00014886,2]
[355202801,1741005335693,-501.40965192,0.00014886,2]
[355202802,1741005335715,-500.0,0.00014886,2]
[355202803,1741005335737,-505.20844648,0.00014886,2]
[355202804,1741005335765,-504.53263839,0.00014886,2]
[355202805,1741005335793,-504.21002765,0.00014886,2]
[355202806,1741005335816,-509.3,0.00014886,2]
[355202807,1741005335839,-399.43,0.00014886,2]
[355202808,1741005335862,-499.71651352,0.00014886,2]
[355202809,1741005335888,-500.0,0.00014886,2]
[355202810,1741005335910,-507.89760325,0.00014886,2]
[355202811,1741005335933,-930.11,0.00014886,2]
[355202812,1741005335955,-500.0,0.00014886,2]
[355202813,1741005335977,-632.60766363,0.00014886,2]
[355202814,1741005335998,-502.50693763,0.00014886,2]
[355202815,1741005336024,-417.8,0.00014886,2]
[355202816,1741005336046,-502.17910908,0.00014886,2]
[355202817,1741005336070,-500.0,0.00014886,2]
[355202818,1741005336093,-5819.85,0.00014886,2]
[355202819,1741005336115,-504.64240803,0.00014886,2]
[355202820,1741005336140,-500.0,0.00014886,2]
[355202821,1741005336164,-500.0,0.00014886,2]
[355202822,1741005336187,-510.9787958,0.00014886,2]
[355202823,1741005336210,-506.97723615,0.00014886,2]
[355202824,1741005336233,-504.35285822,0.00014886,2]
[355202825,1741005336256,-292.87,0.00014886,2]
[355202826,1741005336282,-500.0,0.00014886,2]
[355202827,1741005336304,-500.0,0.00014886,2]
[355202828,1741005336328,-540.82,0.00014886,2]
[355202829,1741005336352,-500.0,0.00014886,2]
[355202830,1741005336375,-500.0,0.00014886,2]
[355202831,1741005336399,-500.0,0.00014886,2]
[355202832,1741005336423,-500.0,0.00014886,2]
[355202833,1741005336445,-500.0,0.00014886,2]
[355202834,1741005336467,-500.0,0.00014886,2]
[355202835,1741005336490,-176.79,0.00014886,2]
[355202836,1741005336512,-500.0,0.00014886,2]
[355202837,1741005336537,-500.0,0.00014886,2]
[355202838,1741005336559,-500.0,0.00014886,2]
[355202839,1741005336581,-630.53,0.00014886,2]
[355202840,1741005336605,-500.0,0.00014886,2]
[355202841,1741005336629,-455.34,0.00014886,2]
[355202842,1741005336653,-500.0,0.00014886,2]
[355202843,1741005336677,-500.0,0.00014886,2]
[355202844,1741005336700,-500.0,0.00014886,2]
[355202845,1741005336723,-500.0,0.00014886,2]
[355202846,1741005336746,-500.0,0.00014886,2]
[355202847,1741005336772,-630.79,0.00014886,2]
[355202848,1741005336795,-500.0,0.00014886,2]
[355202849,1741005336820,-500.0,0.00014886,2]
[355202850,1741005336844,-500.0,0.00014886,2]
[355202851,1741005336868,-500.0,0.00014886,2]
[355202852,1741005336891,-500.0,0.00014886,2]
[355202853,1741005336914,-500.0,0.00014886,2]
[355202854,1741005336937,-500.0,0.00014886,2]
[355202855,1741005336959,-310.88,0.00014886,2]
[355202856,1741005336982,-572.06,0.00014886,2]
[355202857,1741005337005,-500.0,0.00014886,2]
[355202858,1741005337032,-382.77,0.00014886,2]
[355202859,1741005337055,-521.52524681,0.00014899,2]
[355202860,1741005337078,-2055.59977682,0.000149,2]
[355202861,1741005337101,-1127.39580624,0.000149,2]
[355202862,1741005337124,-1583.0,0.00014958,2]
[355202863,1741005337149,-570.0,0.00014958,2]
[355202864,1741005337172,-786.0,0.00014958,2]
[355202865,1741005337194,-908.0,0.00014958,2]
[355202866,1741005337220,-541.0,0.00014958,2]
[355202867,1741005337242,-1269.0,0.00014958,2]
[355202868,1741005337263,-4040.0,0.00014958,2]
[355202869,1741005337289,-1112.0,0.00014958,2]
[355202870,1741005337312,-256.9483897,0.00014994,2]
[355202871,1741005337334,-1049.9653333,0.00014994,2]
[355202872,1741005337356,-500.0,0.00014999,2]
[355202873,1741005337381,-500.0,0.00014999,2]
[355202874,1741005337405,-195.91467525,0.00014999,2]
[355202875,1741005337429,-265.50445689,0.00014999,2]
[355202876,1741005337451,-500.0,0.00015,2]
[355202877,1741005337474,-568659.82622979,0.00015,2]
[355202878,1741005337496,-155.0,0.00015,3]
[355202879,1741005337523,-677674.21267246,0.00015,2]
[355202880,1741005337546,-415076.55075643,0.00015,2]
[355202881,1741005385370,168.91,0.00014181,2]
[355202882,1741005406412,2000.0,0.00014168,2]
[355202883,1741005434370,-953.738694,0.00014809,2]
[355202884,1741005434394,-300.0,0.00014883,2]
[355202885,1741005434418,-500.0,0.00014884,2]
[355202886,1741005434441,-500.0,0.00014884,2]
[355202887,1741005434463,-500.0,0.00014884,2]
[355202888,1741005434486,-500.0,0.00014884,2]
[355202889,1741005434509,-500.0,0.00014884,2]
[355202890,1741005434530,-500.0,0.00014884,2]
[355202891,1741005434557,-10493.48,0.00014884,2]
[355202892,1741005434579,-500.0,0.00014884,2]
[355202893,1741005434602,-500.0,0.00014884,2]
[355202894,1741005434627,-500.0,0.00014884,2]
[355202895,1741005434651,-500.0,0.00014884,2]
[355202896,1741005434674,-5820.32,0.00014884,2]
[355202897,1741005434697,-500.0,0.00014884,2]
[355202898,1741005434721,-500.0,0.00014884,2]
[355202899,1741005434745,-500.0,0.00014884,2]
[355202900,1741005434769,-1070.26,0.00014884,2]
[355202901,1741005434793,-12257.55,0.00014884,2]
[355202902,1741005434817,-500.0,0.00014884,2]
[355202903,1741005434840,-500.0,0.00014884,2]
[355202904,1741005434864,-500.0,0.00014884,2]
[355202905,1741005434887,-500.0,0.00014884,2]
[355202906,1741005434910,-500.0,0.00014884,2]
[355202907,1741005434933,-500.0,0.00014884,2]
[355202908,1741005434956,-500.0,0.00014884,2]
[355202909,1741005434978,-500.0,0.00014884,2]
[355202910,1741005435001,-500.0,0.00014884,2]
[355202911,1741005435023,-500.0,0.00014884,2]
[355202912,1741005435051,-763.53,0.00014884,2]
[355202913,1741005435073,-500.0,0.00014884,2]
[355202914,1741005435096,-500.0,0.00014884,2]
[355202915,1741005435120,-586.15,0.00014884,2]
[355202916,1741005435143,-500.0,0.00014884,2]
[355202917,1741005435168,-500.0,0.00014884,2]
[355202918,1741005435191,-500.0,0.00014884,2]
[355202919,1741005435213,-558.82083621,0.00014884,2]
[355202920,1741005435237,-500.0,0.00014884,2]
[355202921,1741005435260,-698.3,0.00014884,2]
[355202922,1741005435282,-500.0,0.00014884,2]
[355202923,1741005435306,-362.692473,0.00014884,2]
[355202924,1741005435328,-500.0,0.00014884,2]
[355202925,1741005435351,-500.0,0.00014884,2]
[355202926,1741005435376,-660.58,0.00014884,2]
[355202927,1741005435402,-500.0,0.00014884,2]
[355202928,1741005435426,-500.0,0.00014884,2]
[355202929,1741005435449,-500.0,0.00014884,2]
[355202930,1741005435471,-500.0,0.00014884,2]
[355202931,1741005435493,-500.0,0.00014884,2]
[355202932,1741005435514,-500.0,0.00014884,2]
[355202933,1741005435537,-871.43,0.00014884,2]
[355202934,1741005435559,-500.0,0.00014884,2]
[355202935,1741005435580,-500.0,0.00014884,2]
[355202936,1741005435603,-27584.58275746,0.00014884,2]
[355202937,1741005435627,-500.0,0.00014885,2]
[355202938,1741005435648,-150.0,0.00014885,2]
[355202939,1741005435670,-550.0,0.00014885,2]
[355202940,1741005435693,-500.0,0.00014885,2]
[355202941,1741005435716,-500.0,0.00014885,2]
[355202942,1741005435740,-891.36,0.00014885,2]
[355202943,1741005435763,-500.0,0.00014885,2]
[355202944,1741005435786,-500.0,0.00014885,2]
[355202945,1741005435808,-5577.35,0.00014885,2]
[355202946,1741005435839,-500.0,0.00014885,2]
[355202947,1741005435870,-599.37,0.00014885,2]
[355202948,1741005435896,-500.0,0.00014885,2]
[355202949,1741005435920,-500.0,0.00014885,2]
[355202950,1741005435944,-500.0,0.00014885,2]
[355202951,1741005435968,-500.0,0.00014885,2]
[355202952,1741005435992,-601.86,0.00014885,2]
[355202953,1741005436015,-1418.76,0.00014886,2]
[355202954,1741005436039,-500.0,0.00014886,2]
[355202955,1741005436062,-524.22652351,0.000149,2]
[355202956,1741005436084,-214.1236581,0.00014994,2]
[355202957,1741005436109,-500.0,0.00014999,2]
[355202958,1741005436131,-500.0,0.00014999,2]
[355202959,1741005436158,-500.0,0.00014999,2]
[355202960,1741005436180,-500.0,0.00014999,2]
[355202961,1741005436203,-419.70342359,0.00014999,2]
[355202962,1741005436226,-500.0,0.00014999,2]
[355202963,1741005436248,-500.0,0.00014999,2]
[355202964,1741005436271,-500.0,0.00014999,2]
[355202965,1741005436294,-524.81884534,0.00014999,2]
[355202966,1741005436318,-500.0,0.00014999,2]
[355202967,1741005436583,-500.0,0.00014999,2]
[355202968,1741005436609,-500.0,0.00014999,2]
[355202969,1741005436633,-500.0,0.00014999,2]
[355202970,1741005436656,-500.0,0.00014999,2]
[355202971,1741005436681,-1149.94,0.00014999,2]
[355202972,1741005436705,-1222.52,0.00014999,2]
[355202973,1741005436728,-500.0,0.00014999,2]
[355202974,1741005436751,-1043.73,0.00014999,2]
[355202975,1741005436773,-300.0,0.00014999,2]
[355202976,1741005436796,-511793.84360681,0.00015,2]
[355202977,1741005436820,-200884.92005932,0.00015,2]
[355202978,1741005436842,-150.0,0.00015,2]
[355202979,1741005436865,-26790.90714309,0.00015,2]
[355202980,1741005436890,-2117596.88062586,0.00015,2]
[355202981,1741005436913,-290482.25135371,0.00015,2]
[355202982,1741005472232,1000.0,0.00014192,2]
[355202983,1741005491317,-300.0,0.00014883,2]
[355202984,1741005491349,-537.18,0.00014884,2]
[355202985,1741005491378,-500.0,0.00014884,2]
[355202986,1741005491410,-500.0,0.00014884,2]
[355202987,1741005491440,-500.0,0.00014884,2]
[355202988,1741005491468,-500.0,0.00014884,2]
[355202989,1741005491496,-500.0,0.00014884,2]
[355202990,1741005491524,-500.0,0.00014884,2]
[355202991,1741005491552,-500.0,0.00014884,2]
[355202992,1741005491581,-532.44,0.00014884,2]
[355202993,1741005491611,-1162.56,0.00014884,2]
[355202994,1741005491642,-500.0,0.00014884,2]
[355202995,1741005491673,-500.0,0.00014884,2]
[355202996,1741005491702,-500.0,0.00014884,2]
[355202997,1741005491737,-11709.58,0.00014884,2]
[355202998,1741005491767,-7125.69,0.00014884,2]
[355202999,1741005491797,-500.0,0.00014884,2]
[355203000,1741005491839,-500.0,0.00014884,2]
[355203001,1741005491870,-500.0,0.00014884,2]
[355203002,1741005491899,-500.0,0.00014884,2]
[355203003,1741005491931,-500.0,0.00014884,2]
[355203004,1741005491960,-500.0,0.00014884,2]
[355203005,1741005491989,-500.0,0.00014884,2]
[355203006,1741005492018,-500.0,0.00014884,2]
[355203007,1741005492047,-838.23,0.00014884,2]
[355203008,1741005492077,-501.20783394,0.00014884,2]
[355203009,1741005492105,-500.0,0.00014884,2]
[355203010,1741005492137,-500.0,0.00014884,2]
[355203011,1741005492174,-500.0,0.00014884,2]
[355203012,1741005492204,-500.0,0.00014884,2]
[355203013,1741005492457,-500.0,0.00014884,2]
[355203014,1741005492485,-9809.69,0.00014884,2]
[355203015,1741005492514,-500.0,0.00014884,2]
[355203016,1741005492543,-500.0,0.00014884,2]
[355203017,1741005492579,-260.15,0.00014884,2]
[355203018,1741005492609,-6706.51,0.00014884,2]
[355203019,1741005492638,-713.18,0.00014884,2]
[355203020,1741005492669,-500.0,0.00014884,2]
[355203021,1741005492705,-500.0,0.00014884,2]
[355203022,1741005492740,-550.0,0.00014885,2]
[355203023,1741005492770,-150.0,0.00014885,2]
[355203024,1741005492800,-500.0,0.00014885,2]
[355203025,1741005492832,-763.75,0.00014885,2]
[355203026,1741005492866,-500.0,0.00014885,2]
[355203027,1741005492897,-577.65,0.00014885,2]
[355203028,1741005492936,-641.21,0.00014885,2]
[355203029,1741005492967,-874.9711111,0.00014994,2]
[355203030,1741005493004,-1669.65,0.00014999,2]
[355203031,1741005493037,-589.2,0.00014999,2]
[355203032,1741005493070,-500.0,0.00014999,2]
[355203033,1741005493101,-10022.22,0.00014999,2]
[355203034,1741005493132,-515.98,0.00014999,2]
[355203035,1741005493168,-746.26,0.00014999,2]
[355203036,1741005493416,-300.0,0.00015,2]
[355203037,1741005493432,-537.18,0.00015,2]
[355203038,1741005493444,-500.0,0.00015,2]
[355203039,1741005493459,-500.0,0.00015,2]
[355203040,1741005493471,-500.0,0.00015,2]
[355203041,1741005493482,-500.0,0.00015,2]
[355203042,1741005493496,-500.0,0.00015,2]
[355203043,1741005493507,-500.0,0.00015,2]
[355203044,1741005493518,-500.0,0.00015,2]
[355203045,1741005493535,-532.44,0.00015,2]
[355203046,1741005493551,-1162.56,0.00015,2]
[355203047,1741005493569,-319.85007866,0.000149,2]
[355203048,1741005493579,-180.14992134,0.00015,2]
[355203049,1741005493590,-500.0,0.00015,2]
[355203050,1741005493606,-500.0,0.00015,2]
[355203051,1741005493617,-11709.58,0.00015,2]
[355203052,1741005493629,-7125.69,0.00015,2]
[355203053,1741005493640,-500.0,0.00015,2]
[355203054,1741005493661,-500.0,0.00015,2]
[355203055,1741005493672,-500.0,0.00015,2]
[355203056,1741005493683,-500.0,0.00015,2]
[355203057,1741005493694,-500.0,0.00015,2]
[355203058,1741005493715,-500.0,0.00015,2]
[355203059,1741005493726,-500.0,0.00015,2]
[355203060,1741005493737,-500.0,0.00015,2]
[355203061,1741005493747,-838.23,0.00015,2]
[355203062,1741005493764,-501.20783394,0.00015,2]
[355203063,1741005493775,-500.0,0.00015,2]
[355203064,1741005493786,-500.0,0.00015,2]
[355203065,1741005493798,-500.0,0.00015,2]
[355203066,1741005493823,-500.0,0.00015,2]
[355203067,1741005493834,-500.0,0.00015,2]
[355203068,1741005493872,-9809.69,0.00015,2]
[355203069,1741005493884,-500.0,0.00015,2]
[355203070,1741005493912,-500.0,0.00015,2]
[355203071,1741005493924,-260.15,0.00015,2]
[355203072,1741005493946,-6706.51,0.00015,2]
[355203073,1741005493958,-713.18,0.00015,2]
[355203074,1741005493970,-500.0,0.00015,2]
[355203075,1741005493982,-500.0,0.00015,2]
[355203076,1741005493997,-550.0,0.00015,2]
[355203077,1741005494010,-150.0,0.00015,2]
[355203078,1741005494022,-500.0,0.00015,2]
[355203079,1741005494034,-763.75,0.00015,2]
[355203080,1741005494045,-500.0,0.00015,2]
[355203081,1741005494063,-577.65,0.00015,2]
[355203082,1741005494087,-641.21,0.00015,2]
[355203083,1741005494098,-874.9711111,0.00015,2]
[355203084,1741005494113,-1669.65,0.00015,2]
[355203085,1741005494131,-500.0,0.00014885,2]
[355203086,1741005494141,-89.2,0.00015,2]
[355203087,1741005494157,-500.0,0.00015,2]
[355203088,1741005494171,-10022.22,0.00015,2]
[355203089,1741005494184,-515.98,0.00015,2]
[355203090,1741005494201,-746.26,0.00015,2]
[355203091,1741005494214,-908143.38210992,0.00015,2]
[355203092,1741005514562,920.0,0.00014158,2]
[355203093,1741005522743,4299.73,0.00014154,2]
[355203094,1741005557459,8463.82,0.00014154,2]
[355203095,1741005578428,-8817.9376,0.00014785,2]
[355203096,1741005578457,-500.0,0.00014884,2]
[355203097,1741005578487,-1424.34,0.00014884,2]
[355203098,1741005578517,-500.0,0.00014884,2]
[355203099,1741005578546,-534.34,0.00014884,2]
[355203100,1741005578574,-503.59292471,0.00014884,2]
[355203101,1741005578602,-500.0,0.00014884,2]
[355203102,1741005578630,-500.0,0.00014884,2]
[355203103,1741005578658,-500.0,0.00014884,2]
[355203104,1741005578686,-786.4,0.00014884,2]
[355203105,1741005578930,-500.0,0.00014884,2]
[355203106,1741005578962,-540.04447841,0.00014884,2]
[355203107,1741005578990,-500.0,0.00014884,2]
[355203108,1741005579019,-550.52578913,0.00014884,2]
[355203109,1741005579047,-22700.63,0.00014884,2]
[355203110,1741005579076,-500.0,0.00014884,2]
[355203111,1741005579106,-6451.54,0.00014884,2]
[355203112,1741005579133,-500.0,0.00014884,2]
[355203113,1741005579162,-500.0,0.00014884,2]
[355203114,1741005579194,-500.0,0.00014884,2]
[355203115,1741005579225,-871.08,0.00014884,2]
[355203116,1741005579253,-500.0,0.00014884,2]
[355203117,1741005579285,-791.13,0.00014884,2]
[355203118,1741005579313,-500.0,0.00014884,2]
[355203119,1741005579340,-500.0,0.00014884,2]
[355203120,1741005579369,-7133.96,0.00014884,2]
[355203121,1741005579398,-500.0,0.00014884,2]
[355203122,1741005579426,-1208.04,0.00014884,2]
[355203123,1741005579454,-500.0,0.00014884,2]
[355203124,1741005579482,-500.0,0.00014884,2]
[355203125,1741005579512,-500.0,0.00014884,2]
[355203126,1741005579540,-500.0,0.00014884,2]
[355203127,1741005579570,-500.0,0.00014884,2]
[355203128,1741005579598,-500.0,0.00014884,2]
[355203129,1741005579627,-500.0,0.00014884,2]
[355203130,1741005579656,-500.0,0.00014884,2]
[355203131,1741005579686,-1422.94,0.00014884,2]
[355203132,1741005579715,-1022.13,0.00014884,2]
[355203133,1741005579745,-1053.11,0.00014884,2]
[355203134,1741005579775,-57.84164548,0.00014884,2]
[355203135,1741005579789,-502.83512454,0.00014884,2]
[355203136,1741005579799,-500.0,0.00014884,2]
[355203137,1741005579808,-2132.25,0.00014884,2]
[355203138,1741005579818,-500.0,0.00014884,2]
[355203139,1741005579828,-500.0,0.00014884,2]
[355203140,1741005579838,-500.0,0.00014884,2]
[355203141,1741005579847,-500.0,0.00014884,2]
[355203142,1741005579857,-1000.0,0.00014884,2]
[355203143,1741005579866,-2682.85247546,0.00014884,2]
[355203144,1741005579884,-500.0,0.00014884,2]
[355203145,1741005579895,-1424.34,0.00014884,2]
[355203146,1741005579911,-500.0,0.00014884,2]
[355203147,1741005579935,-534.34,0.00014884,2]
[355203148,1741005579946,-503.59292471,0.00014884,2]
[355203149,1741005579958,-500.0,0.00014884,2]
[355203150,1741005579969,-500.0,0.00014884,2]
[355203151,1741005579990,-500.0,0.00014884,2]
[355203152,1741005580007,-786.4,0.00014884,2]
[355203153,1741005580022,-500.0,0.00014884,2]
[355203154,1741005580068,-540.04447841,0.00014884,2]
[355203155,1741005580083,-500.0,0.00014884,2]
[355203156,1741005580099,-411.60012142,0.00014884,2]
[355203157,1741005580110,-138.92566771,0.00014884,2]
[355203158,1741005580122,-361.07433229,0.00014884,2]
[355203159,1741005580132,-500.0,0.00014884,2]
[355203160,1741005580141,-500.0,0.00014884,2]
[355203161,1741005580150,-500.0,0.00014884,2]
[355203162,1741005580160,-660.46,0.00014884,2]
[355203163,1741005580169,-500.0,0.00014884,2]
[355203164,1741005580179,-500.0,0.00014884,2]
[355203165,1741005580188,-500.0,0.00014885,2]
[355203166,1741005580200,-904.34,0.00014885,2]
[355203167,1741005580211,-697.98,0.00014885,2]
[355203168,1741005580221,-1394.88,0.00014885,2]
[355203169,1741005580231,-1252.74,0.00014885,2]
[355203170,1741005580242,-7967.99,0.00014885,2]
[355203171,1741005580251,-154.644,0.00014886,2]
[355203172,1741005580262,-1954.758,0.00014886,2]
[355203173,1741005580272,-1933.0996,0.000149,2]
[355203174,1741005580285,-2418.66406771,0.000149,2]
[355203175,1741005580298,-500.0,0.000149,2]
[355203176,1741005580309,-6451.54,0.000149,2]
[355203177,1741005580339,178.58,0.00011314,2]
[355203178,1741005580356,-500.0,0.000149,2]
[355203179,1741005580372,-500.0,0.000149,2]
[355203180,1741005580424,-500.0,0.000149,2]
[355203181,1741005580448,-871.08,0.000149,2]
[355203182,1741005580459,-500.0,0.000149,2]
[355203183,1741005580479,-791.13,0.000149,2]
[355203184,1741005580490,-500.0,0.000149,2]
[355203185,1741005580502,-500.0,0.000149,2]
[355203186,1741005580515,-7133.96,0.000149,2]
[355203187,1741005580536,-500.0,0.000149,2]
[355203188,1741005580547,-1208.04,0.000149,2]
[355203189,1741005580582,-500.0,0.000149,2]
[355203190,1741005580608,-500.0,0.000149,2]
[355203191,1741005580623,-500.0,0.000149,2]
[355203192,1741005580636,-500.0,0.000149,2]
[355203193,1741005580648,-500.0,0.000149,2]
[355203194,1741005580659,-500.0,0.000149,2]
[355203195,1741005580676,-500.0,0.000149,2]
[355203196,1741005580698,-500.0,0.000149,2]
[355203197,1741005580709,-1422.94,0.000149,2]
[355203198,1741005580721,-1022.13,0.000149,2]
[355203199,1741005580733,-1053.11,0.000149,2]
[355203200,1741005580748,-560.67677002,0.000149,2]
[355203201,1741005742544,1598.66,0.00014088,2]
[355203202,1741005805288,1379.01,0.00012139,2]
[355203203,1741005805500,1379.01,0.00014403,2]
[355203208,1741005829674,506.55,0.00014057,2]
[355203209,1741006051218,250.0,0.00013886,2]
[355203213,1741006163674,474.78,0.00013885,2]
[355203214,1741006164133,474.78,0.00013965,2]
[355203215,1741006164185,474.78,0.00014046,2]
[355203216,1741006164416,474.78,0.00014126,2]
[355203217,1741006164645,474.78,0.00014206,2]
[355203218,1741006164851,474.78,0.00014287,2]
[355203219,1741006165093,474.78,0.00014367,2]
[355203220,1741006165325,474.78,0.00014448,2]
[355203224,1741006232305,-474.78,0.00014528,2]
[355203225,1741006232315,-474.78,0.00014608,2]
[355203226,1741006232325,-474.78,0.00014689,2]
[355203227,1741006232335,-506.55,0.0001476,2]
[355203228,1741006232346,-474.78,0.00014769,2]
[355203229,1741006232358,-150.0,0.00014772,2]
[355203230,1741006232368,-1766.45532035,0.00014783,2]
[355203231,1741006232377,-167.81598516,0.00014784,2]
[355203232,1741006232388,-2967.3508,0.00014784,2]
[355203233,1741006232399,-565.0,0.00014784,2]
[355203234,1741006232412,-1766.45532026,0.00014796,2]
[355203235,1741006232422,-6400.4522,0.000148,2]
[355203236,1741006232433,-2422.9021,0.000148,2]
[355203237,1741006232447,-1092.9091,0.000148,2]
[355203238,1741006232457,-355.6742,0.000148,2]
[355203239,1741006232469,-22950.11210423,0.000148,2]
[355203240,1741006232483,-37683.48820532,0.000148,2]
[355203241,1741006232496,-442.94046769,0.000148,2]
[355203242,1741006232520,-5119.83298289,0.000148,2]
[355203243,1741006232537,-514.53413072,0.000148,2]
[355203244,1741006232553,-415.09721781,0.000148,2]
[355203245,1741006232565,-308.807424,0.000148,2]
[355203246,1741006232577,-13418.44044484,0.000148,2]
[355203247,1741006232596,-1000.0,0.000148,2]
[355203248,1741006232611,-2147.29,0.000148,2]
[355203249,1741006232650,-1886.38084821,0.000148,2]
[355203250,1741006232662,-337.55144945,0.000148,2]
[355203282,1741006238107,-550.50233257,0.000148,2]
[355203283,1741006238163,-1399.41,0.000148,2]
[355203284,1741006238246,-10999.56584166,0.000148,2]
[355203285,1741006238260,-4614.1363,0.000148,2]
[355203286,1741006238275,-5049.1026,0.000148,2]
[355203287,1741006238289,-861.80848062,0.000148,2]
[355203288,1741006238302,-361.30075111,0.000148,2]
[355203289,1741006238318,-1766.45532026,0.00014809,2]
[355203290,1741006238332,-861.8084806,0.00014811,2]
[355203291,1741006238346,-1766.45532026,0.00014822,2]
[355203292,1741006238358,-150.99,0.00014822,2]
[355203293,1741006238375,-642.06,0.00014822,2]
[355203294,1741006238389,-999.99,0.00014822,2]
[355203295,1741006238404,-1462.17,0.00014822,2]
[355203296,1741006238416,-861.8084806,0.00014822,2]
[355203297,1741006238427,-2818.57,0.00014822,2]
[355203298,1741006238440,-3743.71,0.00014822,2]
[355203299,1741006238456,-2179.83,0.00014822,2]
[355203300,1741006238468,-239.88,0.00014822,2]
[355203301,1741006238481,-9999.99,0.00014822,2]
[355203302,1741006238494,-9999.99,0.00014822,2]
[355203303,1741006238507,-861.8084806,0.00014833,2]
[355203304,1741006238519,-1766.45532026,0.00014835,2]
[355203305,1741006238531,-861.8084806,0.00014844,2]
[355203307,1741006238545,-1766.45532026,0.00014848,2]
[355203309,1741006238556,-474.78,0.00014849,2]
[355203310,1741006238568,-861.8084806,0.00014856,2]
[355203311,1741006238581,-1766.45532026,0.00014861,2]
[355203312,1741006238594,-861.8084806,0.00014867,2]
[355203313,1741006238606,-1766.45532026,0.00014874,2]
[355203314,1741006238621,-256.796,0.00014874,2]
[355203315,1741006238633,-256.796,0.00014874,2]
[355203316,1741006238645,-256.796,0.00014874,2]
[355203317,1741006238658,-256.796,0.00014874,2]
[355203318,1741006238670,-256.796,0.00014874,2]
[355203319,1741006238682,-256.796,0.00014874,2]
[355203320,1741006238694,-256.796,0.00014874,2]
[355203321,1741006238707,-256.796,0.00014874,2]
[355203322,1741006238719,-256.796,0.00014874,2]
[355203323,1741006238731,-256.796,0.00014874,2]
[355203324,1741006238743,-861.8084806,0.00014878,2]
[355203325,1741006238755,-447.20209393,0.00014882,2]
[355203326,1741006238767,-4809.60937106,0.00014883,2]
[355203327,1741006238782,-22293.20574674,0.00014883,2]
[355203328,1741006238794,-500.0,0.00014883,2]
[355203329,1741006238807,-500.0,0.00014883,2]
[355203330,1741006238819,-500.0,0.00014883,2]
[355203331,1741006238831,-500.0,0.00014883,2]
[355203332,1741006238844,-500.0,0.00014883,2]
[355203333,1741006238856,-500.0,0.00014883,2]